bitfinex-derivatives/quotes_ETHF0:USTF0_20251012
["timestamp","ask_amount","ask_price","bid_price","bid_amount"]
[1760273092790,47.10605607,3834.0,3833.5,0.2523]
[1760273092791,52.10605607,3834.0,3833.5,0.2523]
[1760273092992,0.46939,3833.6,3833.5,0.7217]
[1760273093288,0.46944,3833.2,3833.0,0.27533452]
[1760273093486,41.26945,3833.1,3833.0,0.27533452]
[1760273093689,47.47426496,3833.1,3833.0,0.27533452]
[1760273094192,47.00481496,3833.1,3833.0,0.27533452]
[1760273094884,47.00481496,3833.1,3833.0,0.91773452]
[1760273095790,47.00481496,3833.1,3833.0,1.35633452]
[1760273095990,47.00481496,3833.1,3833.0,0.91773452]
[1760273096593,47.00481496,3833.1,3833.0,0.27533452]
[1760273096794,47.00481496,3833.1,3833.0,0.91773452]
[1760273097193,47.00481496,3833.1,3833.0,1.38719452]
[1760273102087,47.00481496,3833.1,3833.0,0.00253452]
[1760273102293,47.47426496,3833.1,3833.0,0.00253452]
[1760273102492,47.47426496,3833.1,3833.0,0.72369452]
[1760273103489,47.47426496,3833.1,3833.0,0.25423452]
[1760273104198,47.00481496,3833.1,3833.0,0.72369452]
[1760273104793,47.00481496,3833.1,3833.0,1.35569452]
[1760273105895,47.47426496,3833.1,3833.0,0.88623452]
[1760273106798,0.46951,3832.6,3832.5,0.2681]
[1760273107003,0.4695,3832.7,3832.6,0.4695]
[1760273107298,0.46951,3832.6,3832.5,0.2681]
[1760273107505,0.46957,3832.1,3832.0,0.2821]
[1760273107692,6.15997734,3832.6,3832.0,0.9141]
[1760273107899,3.40236263,3832.1,3832.0,0.91607939]
[1760273108088,3.40236263,3832.1,3831.5,0.2523]
[1760273108089,0.46962,3831.7,3831.5,0.2523]
[1760273108299,40.8,3831.6,3831.5,0.2523]
[1760273108494,47.25016686,3831.6,3831.5,0.8843]
[1760273108694,40.8,3831.6,3831.5,0.8843]
[1760273108999,47.17767631,3831.6,3831.5,0.8843]
[1760273109397,47.18066393,3831.6,3831.5,0.88765046]
[1760273111003,47.18066393,3831.6,3831.5,1.77665046]
[1760273112605,47.65029393,3831.6,3831.5,0.88765046]
[1760273114209,0.46974,3830.7,3830.6,0.632]
[1760273114407,0.46974,3830.7,3830.5,0.2517]
[1760273114704,0.46974,3830.7,3830.3,0.632]
[1760273114705,0.46978,3830.4,3830.3,0.632]
[1760273114894,0.46979,3830.3,3830.1,0.632]
[1760273115210,6.12325032,3830.2,3830.1,0.63532449]
[1760273115601,6.12325032,3830.2,3830.1,0.00332449]
[1760273116504,0.46982,3830.1,3829.5,0.2517]
[1760273116706,0.46988,3829.6,3829.5,0.2517]
[1760273117103,6.79528059,3829.6,3829.5,0.8837]
[1760273117402,47.59528059,3829.6,3829.5,0.8837]
[1760273117594,47.59528059,3829.6,3829.5,0.88629196]
[1760273118708,47.59528059,3829.6,3829.5,0.00259196]
[1760273119104,47.59528059,3829.6,3829.5,0.25429196]
[1760273119309,47.12540059,3829.6,3829.5,6.77529196]
[1760273121906,47.12540059,3829.6,3829.5,1.77529196]
[1760273122708,47.12540059,3829.6,3829.5,2.24518196]
[1760273123706,47.12540059,3829.6,3829.5,0.88629196]
[1760273123911,47.59528059,3829.6,3829.5,0.88629196]
[1760273125403,47.59528059,3829.6,3829.5,0.25429196]
[1760273125598,47.59528059,3829.6,3829.5,0.00259196]
[1760273126309,0.46993,3829.2,3829.1,0.632]
[1760273126708,6.65092869,3829.2,3829.1,0.632]
[1760273127303,0.46994,3829.1,3829.0,0.2517]
[1760273127508,0.46994,3829.1,3829.0,0.25385156]
[1760273127809,47.46313903,3829.1,3829.0,0.25385156]
[1760273128605,47.46313903,3829.1,3829.0,0.88585156]
[1760273128811,47.46313903,3829.1,3829.0,0.00215156]
[1760273129607,1.1749,3829.0,3828.5,0.2517]
[1760273129806,0.47,3828.6,3828.5,0.2517]
[1760273130114,6.86706312,3828.6,3828.5,0.2517]
[1760273130511,6.86706312,3828.6,3828.5,0.8837]
[1760273130708,6.40033235,3828.6,3828.5,2.24519718]
[1760273130909,47.20033235,3828.6,3828.5,2.24519718]
[1760273137416,47.20033235,3828.6,3828.5,1.35619718]
[1760273138714,47.20033235,3828.6,3828.5,1.77009718]
[1760273139016,47.20033235,3828.6,3828.5,2.21669718]
[1760273140118,6.40033235,3828.6,3828.5,7.21669718]
[1760273140816,9.23e-06,3828.6,3828.5,7.21669718]
[1760273141118,0.46979,3830.4,3830.0,0.8938]
[1760273141416,0.67810127,3830.3,3829.5,0.71949]
[1760273141614,0.67810127,3830.2,3829.5,0.71949]
[1760273141810,1.14792127,3830.1,3829.6,0.46988]
[1760273142013,40.8,3830.0,3829.6,0.46988]
[1760273142212,40.8,3830.0,3829.5,0.2496]
[1760273142419,3.36009391,3829.9,3829.7,0.46986]
[1760273142620,6.19733226,3829.9,3829.7,0.46986]
[1760273142820,6.19733226,3829.9,3829.8,0.46985]
[1760273143317,6.87737268,3829.9,3829.8,1.11405]
[1760273143716,6.19733226,3829.9,3829.8,1.52795]
[1760273144223,6.19733226,3829.9,3829.8,1.97455]
[1760273146819,0.46989,3829.5,3829.2,0.6326]
[1760273147025,6.19733226,3829.9,3829.2,0.6326]
[1760273147219,6.13181028,3829.4,3829.2,1.10252]
[1760273147418,40.8,3829.3,3829.2,0.6326]
[1760273147725,40.8,3829.3,3828.8,1.10257]
[1760273147726,47.61119372,3829.3,3828.8,1.10257]
[1760273147917,40.8,3829.3,3829.0,0.2672]
[1760273148223,6.22385528,3829.2,3829.0,0.8998]
[1760273148420,6.22385528,3829.2,3829.0,1.36975]
[1760273149320,6.22385528,3829.2,3829.0,0.2672]
[1760273149521,6.22385528,3829.2,3828.8,0.46997]
[1760273149721,6.22385528,3829.2,3828.9,0.46996]
[1760273149922,6.22385528,3829.2,3829.1,0.46994]
[1760273150125,6.90328613,3829.2,3828.6,0.6326]
[1760273150317,6.22385528,3829.2,3828.8,0.46997]
[1760273150516,6.22385528,3829.2,3828.9,0.46996]
[1760273150717,0.67954022,3829.1,3828.9,0.46996]
[1760273150918,6.22385528,3829.2,3828.9,0.46996]
[1760273151120,0.67954046,3829.1,3829.0,0.46995]
[1760273151320,6.19761162,3829.1,3829.0,0.46995]
[1760273151520,2.77860238,3829.1,3829.0,0.46995]
[1760273151726,40.8,3829.3,3829.0,0.46995]
[1760273151925,6.19761162,3829.1,3829.0,0.46995]
[1760273152226,6.39993814,3829.2,3829.0,0.46995]
[1760273152423,6.39993814,3829.1,3829.0,0.46995]
[1760273152725,6.39993814,3829.2,3829.0,0.46995]
[1760273153130,46.95450075,3829.1,3829.0,0.46995]
[1760273153320,44.15206018,3829.1,3829.0,0.46995]
[1760273153520,43.60244057,3829.1,3829.0,0.46995]
[1760273153720,51.95450075,3829.1,3828.5,0.00248718]
[1760273154026,0.47004,3828.3,3827.6,0.6326]
[1760273154423,6.09134444,3828.2,3827.6,0.6326]
[1760273154624,0.67747474,3828.1,3827.0,0.2672]
[1760273154820,0.67747474,3828.0,3827.2,0.47017]
[1760273155020,0.4701,3827.8,3827.3,0.6326]
[1760273155529,6.34990883,3827.7,3827.3,0.6326]
[1760273155929,6.34990883,3827.7,3827.0,0.90314601]
[1760273156421,6.34990883,3827.7,3826.2,0.6326]
[1760273156622,0.47017,3827.2,3826.4,0.47027]
[1760273156826,0.47017,3827.2,3826.5,0.2672]
[1760273157025,6.58198041,3827.1,3826.5,0.2672]
[1760273157222,0.4702,3827.0,3826.5,0.2672]
[1760273157529,0.47023,3826.7,3826.5,0.00232139]
[1760273158022,6.31840102,3826.6,3826.5,0.00232139]
[1760273158622,6.78865102,3826.6,3826.0,0.2672]
[1760273158820,40.8,3826.3,3826.0,0.2672]
[1760273159122,6.20813499,3826.2,3826.1,0.4703]
[1760273159328,6.20813499,3826.2,3826.0,0.2672]
[1760273159727,6.20813499,3826.2,3826.0,0.27055718]
[1760273160232,6.20813499,3826.2,3825.5,0.8998]
[1760273160429,0.47032,3826.0,3825.4,0.47039]
[1760273160928,6.17372266,3825.9,3825.2,0.6326]
[1760273161129,6.17372266,3825.9,3824.6,0.6326]
[1760273161130,6.64406266,3825.9,3824.6,0.6326]
[1760273161329,0.47035,3825.8,3824.6,0.63461533]
[1760273161531,3.42059851,3825.8,3824.6,0.00201533]
[1760273161828,2.90786468,3826.1,3824.7,0.47047]
[1760273161829,0.47037,3825.6,3824.7,0.47047]
[1760273162032,3.42059851,3826.0,3824.6,0.47250533]
[1760273162219,6.18369265,3825.5,3824.6,0.47250533]
[1760273162527,0.4704,3825.4,3824.6,0.47250533]
[1760273162725,6.65409265,3825.4,3824.6,0.47250533]
[1760273163123,1.17581,3826.0,3824.6,0.00201533]
[1760273163328,6.23154335,3825.3,3824.7,0.47047]
[1760273163527,3.37051506,3825.3,3824.7,0.47047]
[1760273163724,0.47036,3825.7,3824.6,0.66691533]
[1760273163922,6.23154335,3825.2,3825.0,0.73194]
[1760273164122,6.17968119,3825.4,3825.1,1.13532]
[1760273164319,40.8,3825.2,3825.1,1.13533]
[1760273164725,47.02762972,3825.2,3825.1,1.13533]
[1760273168429,47.02762972,3825.2,3825.1,1.56983]
[1760273170036,47.02762972,3825.2,3825.1,1.13533]
[1760273170437,47.02762972,3825.2,3825.1,1.56983]
[1760273171329,47.02762972,3825.2,3825.1,1.13533]
[1760273171736,47.02762972,3825.2,3825.1,1.56983]
[1760273173740,47.02762972,3825.2,3825.1,1.13533]
[1760273176744,47.02762972,3825.2,3825.1,1.56983]
[1760273177245,47.02762972,3825.2,3825.1,2.01133]
[1760273178143,5.25536972,3825.2,3825.1,7.01133]
[1760273178342,3.51852972,3825.2,3825.1,7.01133]
[1760273178646,1.46645705,3825.2,3825.1,7.01133]
[1760273178944,0.0030156,3827.0,3826.9,0.47021]
[1760273179141,40.8030156,3827.0,3826.5,0.2615]
[1760273179342,2.7777525,3826.9,3826.6,0.6649]
[1760273179544,2.7777525,3826.9,3826.7,0.47023]
[1760273180541,0.47025,3826.6,3825.6,1.17592]
[1760273180742,3.383166,3826.8,3826.1,0.4703]
[1760273180944,6.23938788,3826.5,3826.4,1.13517]
[1760273181144,2.85622188,3826.7,3826.5,0.73175]
[1760273181441,3.37941085,3826.8,3826.5,0.73175]
[1760273181442,3.37941085,3826.6,3826.5,0.73175]
[1760273181647,6.13792236,3826.6,3826.5,0.73175]
[1760273181944,6.13792236,3826.7,3826.6,1.13514]
[1760273182140,3.37941085,3826.8,3826.7,1.13513]
[1760273182445,6.2630521,3826.8,3826.5,0.73174]
[1760273182646,47.0630521,3826.8,3826.5,0.47024]
[1760273182842,47.0630521,3826.8,3826.6,0.47024]
[1760273183441,47.0630521,3826.8,3826.5,0.47026]
[1760273183843,47.0630521,3826.8,3826.6,0.47024]
[1760273184843,47.0630521,3826.8,3826.0,0.73181]
[1760273185156,0.47028,3826.3,3825.5,0.9264]
[1760273185346,0.47031,3826.1,3825.8,0.47034]
[1760273185846,6.29467072,3826.0,3825.5,0.2615]
[1760273186048,6.29467072,3826.0,3825.9,1.13523]
[1760273186248,6.29259086,3826.1,3826.0,0.47032]
[1760273186553,6.29259086,3826.1,3825.6,0.6649]
[1760273186554,6.29259086,3826.0,3825.6,0.6649]
[1760273186742,47.56290086,3826.1,3825.6,0.6649]
[1760273187046,6.29259086,3825.9,3825.6,0.6649]
[1760273187347,6.20451714,3826.0,3825.9,0.47033]
[1760273187548,2.87653395,3825.8,3825.6,0.6649]
[1760273187741,2.87653395,3825.8,3825.7,0.47035]
[1760273187943,2.87653395,3826.0,3825.9,0.47033]
[1760273188145,0.47029,3826.3,3825.9,0.47033]
[1760273188445,0.66255149,3826.2,3826.0,0.47032]
[1760273188646,41.46255149,3826.1,3826.0,0.47032]
[1760273188943,47.06171405,3826.1,3826.0,0.47032]
[1760273189149,47.06171405,3826.1,3826.0,1.39672]
[1760273190144,47.06171405,3826.1,3826.0,0.73182]
[1760273190648,47.06171405,3826.1,3826.0,1.39672]
[1760273192745,47.06171405,3826.1,3826.0,1.83122]
[1760273193145,47.06171405,3826.1,3826.0,1.39672]
[1760273194755,47.06171405,3826.1,3826.0,0.47032]
[1760273195151,47.06171405,3826.1,3825.5,0.9205]
[1760273195353,0.47033,3825.9,3825.4,0.47039]
[1760273195553,0.66315973,3825.8,3825.5,0.47038]
[1760273195749,41.46315973,3825.7,3825.5,0.47038]
[1760273195950,0.66315973,3825.6,3825.0,0.9205]
[1760273196151,6.99930707,3825.6,3825.0,0.9205]
[1760273196352,0.66315973,3825.5,3825.0,0.2615]
[1760273196757,0.66315973,3825.5,3824.9,0.47045]
[1760273196758,0.47041,3825.3,3824.9,0.47045]
[1760273197052,0.47041,3825.3,3825.0,0.47044]
[1760273197255,6.22066473,3825.2,3824.6,0.00201533]
[1760273197452,0.66327673,3825.1,3824.6,0.00201533]
[1760273197658,1.13372673,3825.0,3824.6,0.00201533]
[1760273197952,0.66327673,3824.9,3824.6,0.00201533]
[1760273198153,0.66327673,3824.9,3824.7,0.47048]
[1760273198360,6.16699776,3824.9,3824.7,1.12948]
[1760273198565,6.16699776,3824.9,3824.6,0.00201533]
[1760273198859,1.133577,3824.8,3824.6,0.00201533]
[1760273199060,0.47047,3824.8,3824.6,0.00201533]
[1760273199249,6.42615893,3824.7,3824.6,0.00201533]
[1760273199447,6.42615893,3824.7,3824.2,1.12953]
[1760273199652,6.89663893,3824.7,3824.2,0.47054]
[1760273199852,6.42615893,3824.7,3824.4,0.47051]
[1760273200058,6.42615893,3824.7,3824.5,0.4705]
[1760273200257,6.42615893,3824.7,3823.9,0.659]
[1760273200459,6.42615893,3824.7,3824.3,0.47052]
[1760273200655,6.42615893,3824.7,3824.0,0.27632045]
[1760273200967,6.42615893,3824.7,3824.5,0.7445]
[1760273201462,6.42615893,3824.7,3824.5,0.274]
[1760273201662,40.8,3824.6,3824.5,0.274]
[1760273201862,40.8,3824.6,3824.5,0.933]
[1760273202064,46.94502521,3824.6,3824.5,0.933]
[1760273202954,46.94502521,3824.6,3824.5,1.8048]
[1760273203161,5.11455829,3824.6,3824.5,6.8048]
[1760273203353,4.29642829,3824.6,3824.5,6.8048]
[1760273203665,2.02370829,3824.6,3824.5,6.8048]
[1760273203858,1.73814897,3824.6,3824.5,6.8048]
[1760273204058,1.01404897,3824.6,3824.5,6.8048]
[1760273204259,2.22014868,3826.4,3826.3,0.659]
[1760273204461,2.22014868,3826.4,3826.1,0.4703]
[1760273204660,2.98534343,3826.3,3826.1,0.4703]
[1760273206274,0.47033,3826.0,3824.8,1.17615]
[1760273206560,0.4703,3826.2,3825.7,0.47035]
[1760273206754,6.15128698,3825.9,3825.7,0.47035]
[1760273206956,6.15128698,3826.1,3825.7,0.47035]
[1760273207164,6.15128698,3825.8,3825.6,0.47037]
[1760273207365,6.1634615,3826.0,3825.7,0.47034]
[1760273207668,6.6337715,3826.1,3825.7,0.47034]
[1760273207868,6.1634615,3825.9,3825.7,0.47034]
[1760273208263,0.47031,3826.1,3825.7,0.47034]
[1760273208460,6.290409,3825.8,3825.2,0.47041]
[1760273208665,40.8,3825.3,3825.2,0.47042]
[1760273209068,47.090409,3825.3,3824.9,0.47045]
[1760273209265,47.090409,3825.3,3824.8,0.72]
[1760273209471,47.090409,3825.3,3825.1,0.47043]
[1760273209666,47.090409,3825.3,3825.2,0.72]
[1760273210067,47.090409,3825.3,3825.1,0.47043]
[1760273211169,47.090409,3825.3,3825.2,0.47042]
[1760273215168,47.090409,3825.3,3825.0,0.2703]
[1760273215375,6.290409,3825.3,3825.0,0.47044]
[1760273215576,6.290409,3825.3,3824.6,1.17624]
[1760273215772,40.8,3824.8,3824.7,0.47048]
[1760273215974,40.8,3824.8,3824.7,1.19048]
[1760273216170,47.15242545,3824.8,3824.7,1.19048]
[1760273217076,5.86077619,3824.8,3824.7,7.12578]
[1760273217376,2.79681619,3824.8,3824.7,7.12578]
[1760273217567,0.59918619,3824.8,3824.7,9.44659373]
[1760273217770,6.19e-06,3824.8,3824.7,9.44659373]
[1760273218478,40.8,3825.6,3825.5,2.39598]
[1760273218779,43.52091925,3825.6,3825.5,2.39598]
[1760273219076,46.9253779,3825.6,3825.5,7.39598]
[1760273220580,47.3957579,3825.6,3825.4,0.47039]
[1760273220775,47.3957579,3825.6,3825.1,2.32081373]
[1760273220776,5.0,3825.5,3824.8,0.47046]
[1760273220975,46.9253779,3825.6,3825.0,4e-05]
[1760273221181,6.31345834,3825.4,3825.0,0.47048]
[1760273221478,6.30970563,3825.5,3824.5,0.994]
[1760273221676,6.30970563,3825.3,3824.7,0.47048]
[1760273221877,0.47043,3825.1,3824.7,0.47048]
[1760273222077,6.30970563,3825.4,3824.5,0.994]
[1760273222078,2.94141757,3825.2,3824.6,0.72]
[1760273222282,6.30970563,3825.2,3825.1,1.19043]
[1760273222478,6.2481657,3825.3,3825.1,0.47043]
[1760273222682,6.2481657,3825.2,3825.1,1.16533]
[1760273222979,0.47034,3825.8,3825.1,0.6949]
[1760273223177,6.2481657,3825.2,3825.1,1.16533]
[1760273223378,40.8,3825.2,3825.1,1.16533]
[1760273223579,46.97187412,3825.2,3825.1,1.16533]
[1760273224478,46.97187412,3825.2,3825.0,0.74073]
[1760273224678,46.97187412,3825.2,3825.0,0.2703]
[1760273225180,0.47043,3825.1,3824.6,0.47049]
[1760273225384,0.47043,3825.1,3824.7,0.47048]
[1760273225584,6.16605311,3825.0,3824.7,0.47048]
[1760273226087,6.63649311,3825.0,3824.7,0.47048]
[1760273226788,0.47045,3824.9,3824.6,0.47049]
[1760273227286,6.08465447,3824.8,3824.5,0.274]
[1760273227479,6.08465447,3824.8,3824.5,0.7445]
[1760273227680,6.55512447,3824.8,3824.5,0.7445]
[1760273228287,0.47048,3824.7,3824.5,0.274]
[1760273228675,6.28338185,3824.6,3824.5,0.274]
[1760273228875,47.55387185,3824.6,3824.5,0.274]
[1760273229092,47.08338185,3824.6,3824.1,1.16545]
[1760273229388,0.47052,3824.4,3824.1,0.6949]
[1760273229890,6.24508225,3824.3,3824.1,1.16545]
[1760273230186,6.24816774,3824.3,3824.2,1.16544]
[1760273230480,5.75824199,3824.3,3824.2,2.13724]
[1760273231285,5.75824199,3824.3,3824.2,1.16544]
[1760273232292,5.75824199,3824.3,3824.2,0.6949]
[1760273232585,5.75824199,3824.3,3824.2,1.16544]
[1760273232792,5.75824199,3824.3,3824.0,0.27262045]
[1760273233089,6.22877199,3824.3,3824.0,0.27262045]
[1760273233688,1.17636,3824.2,3823.2,0.73221758]
[1760273233882,5.75824199,3824.3,3823.2,0.26155758]
[1760273234077,6.3258408,3824.1,3823.2,0.26155758]
[1760273234291,40.8,3823.3,3823.2,0.26155758]
[1760273234791,47.17101081,3823.3,3823.2,0.26395662]
[1760273235689,47.17101081,3823.3,3823.0,0.2859]
[1760273235690,47.64166081,3823.3,3823.0,0.2859]
[1760273236087,0.47069,3823.0,3822.8,0.02615884]
[1760273236388,6.19104135,3822.9,3822.5,0.75665]
[1760273236588,6.19104135,3822.9,3822.5,0.2859]
[1760273236790,6.19104135,3822.9,3822.5,0.28873876]
[1760273236791,0.47072,3822.8,3822.5,0.28873876]
[1760273237083,6.19104135,3822.7,3822.5,0.28873876]
[1760273237288,6.19104135,3822.7,3822.5,0.75947876]
[1760273237489,6.31910929,3822.8,3822.6,0.6949]
[1760273237787,41.27065,3823.3,3823.1,0.47067]
[1760273237788,6.31910929,3823.2,3823.1,0.47067]
[1760273238090,40.8,3823.3,3823.1,0.47067]
[1760273238286,40.8,3823.3,3823.2,0.6949]
[1760273238688,47.05774141,3823.3,3823.2,0.6949]
[1760273240294,47.05774141,3823.3,3823.2,1.16556]
[1760273241294,47.05774141,3823.3,3823.2,1.64576]
[1760273241694,47.05774141,3823.3,3823.2,1.16556]
[1760273243694,47.05774141,3823.3,3823.2,0.6949]
[1760273244396,47.05774141,3823.3,3823.2,1.16556]
[1760273244698,52.05774141,3823.3,3822.6,1.16564]
[1760273244883,52.05774141,3823.3,3822.7,0.47072]
[1760273244884,0.47069,3823.0,3822.7,0.47072]
[1760273245291,40.8,3822.8,3822.7,0.47072]
[1760273245690,46.98204002,3822.8,3822.7,0.47072]
[1760273245993,46.98204002,3822.8,3822.7,1.16562]
[1760273246697,46.98204002,3822.8,3822.2,0.6949]
[1760273246893,46.98204002,3822.8,3822.3,0.47076]
[1760273247094,0.47072,3822.7,3822.3,0.47076]
[1760273247293,46.98204002,3822.8,3822.0,0.2859]
[1760273247493,6.15753948,3822.6,3822.5,0.98363876]
[1760273247694,6.15753948,3822.7,3822.5,1.45438876]
[1760273247889,3.39140738,3822.6,3822.5,1.45438876]
[1760273248097,6.15753948,3822.6,3822.5,0.75948876]
[1760273248293,40.8,3822.6,3822.5,0.28873876]
[1760273248492,47.1158767,3822.6,3822.5,0.28873876]
[1760273248794,47.1158767,3822.6,3822.5,1.45438876]
[1760273248995,47.1158767,3822.6,3822.5,7.42618876]
[1760273249297,47.1158767,3822.6,3822.5,0.98363876]
[1760273249499,47.1158767,3822.6,3822.5,6.95543876]
[1760273250496,47.1158767,3822.6,3822.5,1.46383876]
[1760273250808,47.1158767,3822.6,3822.5,0.28873876]
[1760273251103,47.1158767,3822.6,3822.5,1.93458876]
[1760273251998,47.1158767,3822.6,3822.5,2.42618876]
[1760273252195,47.1158767,3822.6,3822.5,7.42618876]
[1760273253206,6.3158767,3822.6,3822.5,7.42618876]
[1760273253998,40.8,3823.4,3823.3,2.14335]
[1760273254306,0.00308549,3824.3,3824.2,1.20864]
[1760273254502,0.47361549,3824.3,3824.0,1.0168]
[1760273254795,47.09965269,3824.2,3824.1,0.47055]
[1760273256204,0.47055,3824.1,3823.9,0.47057]
[1760273256399,47.09965269,3824.2,3823.9,0.47057]
[1760273256604,6.49391378,3824.0,3823.9,0.47057]
[1760273256804,3.0256165,3824.0,3823.9,0.47057]
[1760273257004,6.49391378,3824.1,3824.0,0.47056]
[1760273257200,3.0256165,3824.1,3824.0,0.47056]
[1760273257402,40.8,3824.2,3824.1,0.47055]
[1760273257802,47.13980066,3824.2,3824.1,0.47055]
[1760273258403,47.13980066,3824.2,3824.0,0.47056]
[1760273258710,47.13980066,3824.2,3824.1,5.0]
[1760273258901,47.13980066,3824.2,3824.1,5.7381]
[1760273259102,5.49e-06,3824.3,3824.2,1.20864]
[1760273259311,5.49e-06,3824.3,3824.2,6.20864]
[1760273259510,2.30182398,3826.9,3826.1,0.4703]
[1760273259704,0.47028,3826.3,3825.6,0.47036]
[1760273259906,0.4703,3826.2,3825.1,0.7381]
[1760273260105,40.8,3825.7,3825.4,0.47039]
[1760273260312,40.8,3825.7,3824.7,0.7381]
[1760273260613,6.80118537,3825.6,3825.4,0.00264313]
[1760273260914,6.33081537,3825.6,3825.4,0.00264313]
[1760273261102,6.33081537,3825.6,3825.4,0.47303313]
[1760273261309,6.33081537,3825.6,3825.5,0.7381]
[1760273261505,6.33081537,3825.6,3825.5,1.0168]
[1760273261720,6.33081537,3825.6,3825.5,6.0168]
[1760273262312,6.33081537,3825.6,3825.5,1.0168]
[1760273263119,6.33081537,3825.6,3825.5,6.0168]
[1760273264227,2.88876004,3825.6,3825.5,6.0168]
[1760273264422,0.00337095,3825.7,3825.6,1.18757]
[1760273264816,40.8,3826.4,3826.3,0.47028]
[1760273265016,0.47013,3827.6,3827.3,0.47015]
[1760273265216,0.47013,3827.6,3826.5,1.46945]
[1760273265217,0.022,3827.8,3827.5,0.7172]
[1760273265418,3.41029312,3827.7,3827.5,0.7172]
[1760273265721,0.47015,3827.4,3827.0,0.47019]
[1760273266016,40.8,3827.2,3827.0,0.47019]
[1760273266431,6.34084383,3827.1,3827.0,0.47019]
[1760273267127,6.34084383,3827.1,3827.0,1.48119]
[1760273267916,6.34084383,3827.1,3827.0,6.48119]
[1760273268123,2.94703151,3827.1,3827.0,6.48119]
[1760273268515,2.42230151,3827.1,3827.0,6.48119]
[1760273268815,40.8,3827.2,3827.0,6.48119]
[1760273269122,0.00281744,3827.4,3827.3,1.18736]
[1760273269626,6.32029137,3827.4,3827.3,1.18736]
[1760273273728,6.32029137,3827.4,3827.3,0.7172]
[1760273274322,47.12029137,3827.4,3827.3,0.7172]
[1760273275329,47.12029137,3827.4,3827.0,1.011]
[1760273275525,0.47018,3827.2,3827.1,0.7172]
[1760273275925,6.33728594,3827.2,3827.1,1.18738]
[1760273277218,3.35295518,3827.2,3827.1,6.18738]
[1760273277621,40.80281744,3827.4,3827.3,0.47016]
[1760273277823,40.80281744,3827.4,3827.3,1.18736]
[1760273278031,6.19191794,3827.4,3827.3,1.18736]
[1760273278530,3.41176855,3827.4,3827.3,6.18736]
[1760273280132,6.3604238,3827.4,3827.3,1.18736]
[1760273280536,3.41176855,3827.4,3827.3,6.18736]
[1760273280833,3.41176855,3827.4,3827.3,1.18736]
[1760273281029,6.36633956,3827.4,3827.3,1.18736]
[1760273281230,6.36633956,3827.4,3827.3,2.15656]
[1760273282636,6.36633956,3827.4,3827.3,1.6864]
[1760273282822,0.47016,3827.3,3827.1,1.21438]
[1760273283027,0.47017,3827.2,3827.1,0.47018]
[1760273283226,0.47297744,3827.4,3827.2,0.47016]
[1760273283427,3.32500986,3827.2,3826.7,1.21443]
[1760273283731,0.4702,3827.0,3826.8,0.47022]
[1760273283938,0.47021,3826.9,3826.8,0.47022]
[1760273284133,6.45466194,3826.9,3826.8,0.47022]
[1760273284335,3.43087129,3826.9,3826.8,0.47022]
[1760273284633,44.24576489,3826.9,3826.8,0.47022]
[1760273284835,43.77555489,3826.9,3826.8,0.47022]
[1760273285024,47.13414278,3826.9,3826.8,1.21442]
[1760273286034,47.13414278,3826.9,3826.8,0.47022]
[1760273286235,52.13414278,3826.9,3826.5,1.038]
[1760273286543,47.13414278,3826.9,3826.8,0.47022]
[1760273287130,47.13414278,3826.9,3826.8,1.21442]
[1760273287628,6.33414278,3826.9,3826.8,1.21442]
[1760273289441,6.33414278,3826.9,3826.5,0.2938]
[1760273289634,6.33414278,3826.9,3826.8,0.47022]
[1760273289831,0.47022,3826.8,3826.7,0.47023]
[1760273290139,0.4702,3827.0,3826.8,0.47022]
[1760273290528,5.74544,3826.8,3826.7,1.21443]
[1760273290730,0.00281744,3827.4,3826.9,1.17553]
[1760273290931,0.00281744,3827.4,3827.3,1.21436]
[1760273291333,2.8170275,3827.4,3827.3,1.21436]
[1760273293238,6.93693723,3827.4,3827.3,1.21436]
[1760273293535,6.23553723,3827.4,3827.3,1.21436]
[1760273293740,6.23553723,3827.4,3827.3,2.15426]
[1760273294439,6.93693723,3827.4,3827.3,2.15426]
[1760273294839,7.43633723,3827.4,3827.3,2.15426]
[1760273295942,7.91813723,3827.4,3827.3,0.47016]
[1760273296238,7.43633723,3827.4,3827.3,2.15426]
[1760273297034,7.91813723,3827.4,3827.3,1.41006]
[1760273298933,7.91813723,3827.4,3827.3,0.95316]
[1760273299440,7.43633723,3827.4,3827.3,2.15426]
[1760273299641,6.23553723,3827.4,3827.3,2.15426]
[1760273299841,6.93693723,3827.4,3827.3,2.15426]
[1760273300042,7.43633723,3827.4,3827.3,2.15426]
[1760273300435,6.23553723,3827.4,3827.3,2.15426]
[1760273301346,0.00281744,3827.4,3827.3,2.15426]
[1760273301848,4.06280692,3827.4,3827.3,2.15426]
[1760273302040,2.86200692,3827.4,3827.3,2.15426]
[1760273302542,43.66200692,3827.4,3827.3,2.15426]
[1760273303248,2.86200692,3827.4,3827.3,2.15426]
[1760273303849,0.00281744,3827.4,3827.3,2.15426]
[1760273305248,0.00281744,3827.4,3827.3,4.02023051]
[1760273307645,0.00281744,3827.4,3827.3,2.15426]
[1760273309452,7.44e-06,3827.4,3827.3,2.15426]
[1760273312948,7.44e-06,3827.8,3827.7,2.17721]
[1760273313143,1.2737,3829.5,3829.2,0.46992]
[1760273313348,1.2737,3829.5,3828.5,2.33595098]
[1760273313349,0.9915,3828.6,3828.5,2.33595098]
[1760273313551,0.9915,3828.6,3828.2,1.86594098]
[1760273313751,1.7404,3828.2,3828.1,0.47006]
[1760273313951,1.7427875,3828.2,3828.1,0.47260998]
[1760273314159,8.04630664,3828.2,3828.1,0.47260998]
[1760273314359,48.84630664,3828.2,3828.1,0.47260998]
[1760273315161,0.0023875,3828.2,3828.1,7.17970998]
[1760273315457,7.39839373,3828.2,3828.1,2.80683929]
[1760273315645,7.39839373,3828.2,3828.1,2.34048282]
[1760273315851,7.39839373,3828.2,3828.1,2.34054654]
[1760273316053,7.39839373,3828.2,3828.1,2.82114654]
[1760273316251,7.39839373,3828.2,3828.1,1.67030998]
[1760273316746,12.39839373,3828.2,3828.1,2.34102315]
[1760273316950,0.4699,3829.4,3828.5,1.17504]
[1760273317150,1.2313,3829.0,3828.9,0.95056]
[1760273317352,7.88598006,3829.0,3828.9,1.66766]